bitfinex-derivatives/quotes_ETHF0:USTF0_20250530
["timestamp","ask_amount","ask_price","bid_price","bid_amount"]
[1748631491339,0.77606,2576.6,2576.5,1.2421]
[1748631491947,0.77609,2576.5,2576.4,0.00582456]
[1748631494353,1.45357,2576.6,2576.4,0.00582456]
[1748631494544,3.2078,2576.7,2576.6,0.77606]
[1748631499063,3.98383,2576.7,2576.6,0.77606]
[1748631499259,3.2078,2576.7,2576.6,0.77606]
[1748631500962,3.2078,2577.0,2576.9,0.77597]
[1748631501360,0.77599,2576.9,2576.7,2.02521]
[1748631501662,0.77606,2576.6,2576.5,4.6529]
[1748631501963,0.77605,2576.7,2576.5,6.67817]
[1748631502461,0.77603,2576.7,2576.5,6.67817]
[1748631503257,0.77606,2576.6,2576.5,6.67817]
[1748631503765,1.42301,2576.8,2576.7,0.77603]
[1748631503963,1.42301,2576.8,2576.6,0.77604]
[1748631504165,1.42301,2576.8,2576.7,1.3283]
[1748631504367,0.647,2576.8,2576.7,1.3283]
[1748631504561,3.8749,2577.0,2576.7,1.3283]
[1748631504865,4.65086,2577.0,2576.8,0.77599]
[1748631505368,0.77597,2576.9,2576.8,0.776]
[1748631505560,4.65086,2577.0,2576.8,0.77597]
[1748631505864,0.77597,2576.9,2576.8,0.77597]
[1748631506166,3.98377,2576.9,2576.8,0.77597]
[1748631506765,3.2078,2576.9,2576.8,0.77597]
[1748631507664,0.776,2576.8,2576.7,1.3283]
[1748631507868,3.98378,2576.9,2576.8,0.776]
[1748631508564,0.776,2576.8,2576.7,2.10431]
[1748631509968,3.98379,2576.9,2576.8,0.776]
[1748631510271,3.2078,2576.9,2576.8,0.776]
[1748631511766,3.98377,2576.9,2576.8,0.776]
[1748631511965,3.2078,2576.9,2576.8,0.776]
[1748631512165,3.98377,2576.9,2576.8,0.776]
[1748631513170,0.776,2576.8,2576.7,2.10431]
[1748631513871,3.98379,2576.9,2576.8,0.776]
[1748631514868,1.9913,2577.1,2576.6,3.27464]
[1748631515066,1.44263,2577.1,2577.0,0.77594]
[1748631515767,0.77594,2577.0,2576.9,0.77594]
[1748631516167,0.6667,2577.1,2577.0,0.77594]
[1748631517775,1.44261,2577.1,2577.0,0.77594]
[1748631518677,0.77594,2577.0,2576.9,0.77595]
[1748631519174,2.60648,2577.1,2576.6,3.2078]
[1748631519373,0.77597,2576.9,2576.8,0.77599]
[1748631519973,0.6667,2577.1,2576.7,1.94008]
[1748631520172,0.6667,2577.1,2577.0,0.77594]
[1748631520377,1.44261,2577.1,2577.0,0.77594]
[1748631522177,0.77594,2577.0,2576.9,0.77597]
[1748631522575,0.77594,2577.0,2576.9,1.43787]
[1748631523077,1.44262,2577.1,2577.0,0.77594]
[1748631523272,0.6667,2577.1,2577.0,2.08284]
[1748631524478,1.44261,2577.1,2577.0,1.3069]
[1748631525876,3.2078,2577.2,2577.1,0.77591]
[1748631526079,0.77588,2577.3,2577.2,0.77588]
[1748631527087,0.77582,2577.4,2577.3,0.77582]
[1748631527677,0.77585,2577.3,2577.2,0.77586]
[1748631528081,0.77582,2577.4,2577.2,0.77585]
[1748631528278,0.77582,2577.4,2577.3,1.339]
[1748631529179,0.77582,2577.4,2577.3,2.11485]
[1748631529379,0.77582,2577.4,2577.3,1.339]
[1748631531587,0.77582,2577.4,2577.3,2.11485]
[1748631531783,0.77582,2577.4,2577.3,1.339]
[1748631531983,0.77582,2577.4,2577.3,2.11485]
[1748631532288,0.77582,2577.4,2577.3,1.339]
[1748631533988,0.77582,2577.4,2577.3,2.11485]
[1748631534189,0.77582,2577.4,2577.3,1.339]
[1748631538291,0.77582,2577.4,2577.3,2.11485]
[1748631538794,0.6591,2577.7,2577.3,7.23761]
[1748631538995,0.6591,2577.7,2577.3,5.298]
[1748631539195,0.6591,2577.7,2577.4,1.3426]
[1748631539196,0.77579,2577.5,2577.4,1.3426]
[1748631539691,0.77579,2577.5,2577.4,2.11842]
[1748631539995,0.77579,2577.5,2577.4,1.3426]
[1748631540295,0.77577,2577.6,2577.4,2.1184]
[1748631540794,0.77582,2577.4,2577.3,1.42275]
[1748631540995,0.77582,2577.4,2577.3,4.6059]
[1748631541189,6.45858,2577.5,2577.0,5.2305]
[1748631541397,0.77588,2577.2,2577.1,0.7759]
[1748631541692,0.77588,2577.2,2577.1,0.77591]
[1748631542606,1.3067,2577.3,2577.0,5.2305]
[1748631542802,0.7759,2577.2,2577.1,0.7759]
[1748631543004,2.5469,2577.3,2577.0,5.2305]
[1748631543204,0.77589,2577.2,2577.1,0.7759]
[1748631543501,3.32276,2577.3,2577.2,0.77588]
[1748631543705,0.6579,2577.3,2577.2,0.77588]
[1748631544507,0.6579,2577.3,2577.2,1.39458]
[1748631546504,1.43375,2577.3,2577.2,1.39458]
[1748631546705,0.6579,2577.3,2577.2,1.39458]
[1748631549905,0.8516,2577.3,2577.2,1.39458]
[1748631551308,0.8516,2577.3,2577.2,0.77588]
[1748631551508,0.8516,2577.3,2577.0,5.89883]
[1748631551509,0.7759,2577.2,2577.1,0.7759]
[1748631551709,2.0639,2577.2,2577.1,0.7759]
[1748631552106,0.77591,2577.1,2577.0,4.72991]
[1748631552411,1.44781,2577.1,2577.0,4.72991]
[1748631553914,0.6719,2577.1,2577.0,4.72991]
[1748631554114,1.288,2577.2,2577.1,0.77591]
[1748631554413,1.4869,2577.3,2577.2,0.77588]
[1748631555012,2.26275,2577.3,2577.2,0.77588]
[1748631555212,1.4869,2577.3,2577.2,0.77588]
[1748631555415,2.26275,2577.3,2577.2,0.77588]
[1748631555715,0.77588,2577.2,2577.1,2.79908]
[1748631556011,2.26277,2577.3,2577.2,0.77588]
[1748631556413,1.4869,2577.3,2577.1,2.0232]
[1748631556613,2.26277,2577.3,2577.2,0.77588]
[1748631557709,0.1937,2577.3,2577.2,2.09858]
[1748631559316,0.96955,2577.3,2577.2,2.09858]
[1748631559511,0.1937,2577.3,2577.2,2.09858]
[1748631560014,0.77591,2577.1,2577.0,4.72992]
[1748631561017,1.41549,2577.2,2577.1,0.77591]
[1748631561320,0.1937,2577.3,2577.2,0.77588]
[1748631562817,0.96955,2577.3,2577.2,0.77588]
[1748631564414,0.1937,2577.3,2577.2,4.72988]
[1748631569115,0.1937,2577.3,2577.2,9.72988]
[1748631569315,3.8591,2578.8,2577.2,8.954]
[1748631569522,0.7756,2578.2,2578.1,3.2078]
[1748631570317,2.0353,2578.2,2578.1,3.2078]
[1748631572420,2.0353,2578.2,2578.1,3.98341]
[1748631572621,2.0353,2578.2,2578.1,3.2078]
[1748631572817,0.00582456,2578.4,2578.1,3.2078]
[1748631573025,0.00582456,2578.4,2578.3,0.77555]
[1748631574224,0.78134456,2578.4,2578.3,0.77555]
[1748631574524,0.00582456,2578.4,2578.3,0.77555]
[1748631575325,2.07274456,2578.4,2578.3,0.77555]
[1748631575523,0.77555,2578.3,2578.2,0.77556]
[1748631575721,2.71455,2578.3,2578.2,0.77556]
[1748631575928,1.939,2578.3,2578.2,0.77556]
[1748631577530,1.939,2578.3,2578.1,5.20569]
[1748631577731,1.939,2578.3,2578.1,4.4301]
[1748631578031,0.6476,2578.3,2578.2,0.77558]
[1748631578230,0.6476,2578.3,2578.2,1.39498]
[1748631578432,0.6476,2578.3,2578.2,2.74478]
[1748631579129,1.42315,2578.3,2578.2,2.74478]
[1748631579426,3.2078,2578.8,2578.2,6.9692]
[1748631579630,0.77546,2578.6,2578.5,3.2078]
[1748631580027,5.14611,2579.1,2578.5,3.98329]
[1748631580028,0.77545,2578.7,2578.5,3.98329]
[1748631580232,1.2263,2578.8,2578.5,3.98329]
[1748631580532,0.77546,2578.6,2578.5,3.2078]
[1748631581927,0.77546,2578.6,2578.5,3.98329]
[1748631582730,1.44206,2578.6,2578.5,3.2078]
[1748631582925,1.2263,2578.7,2578.6,0.77546]
[1748631583124,2.00173,2578.7,2578.6,0.77546]
[1748631584633,2.67743,2578.7,2578.6,0.77546]
[1748631585629,0.77546,2578.6,2578.5,3.98326]
[1748631585830,2.00286,2578.6,2578.5,3.98326]
[1748631586031,2.00286,2578.6,2578.5,3.2078]
[1748631586737,2.00286,2578.6,2578.5,3.98329]
[1748631587440,2.00286,2578.6,2578.5,3.2078]
[1748631588331,0.77549,2578.5,2578.4,3.98329]
[1748631588539,0.77549,2578.5,2578.4,3.2078]
[1748631588736,0.77549,2578.5,2578.4,3.98332]
[1748631590239,3.16609,2578.6,2578.2,0.6194]
[1748631590541,0.77561,2578.1,2578.0,1.2593]
[1748631590741,0.77561,2578.1,2578.0,1.9027]
[1748631591735,0.77561,2578.1,2578.0,2.67834]
[1748631594849,1.93866,2578.6,2578.2,0.77556]
[1748631595035,0.77552,2578.4,2578.3,4.4523]
[1748631595237,0.7755,2578.5,2578.3,4.4523]
[1748631595438,0.7755,2578.5,2578.4,0.6724]
[1748631595636,0.7755,2578.5,2578.4,1.9169]
[1748631596643,0.77552,2578.4,2578.3,3.2078]
[1748631596846,0.77558,2578.2,2578.1,0.7756]
[1748631597045,0.77556,2578.3,2578.2,0.77557]
[1748631599246,0.77558,2578.2,2578.1,2.02008]
[1748631599439,0.77557,2578.3,2578.2,0.77557]
[1748631599639,0.77558,2578.2,2578.1,2.02008]
[1748631599843,5.2608,2578.5,2578.2,0.77557]
[1748631599844,0.77557,2578.3,2578.2,0.77557]
[1748631600236,0.77558,2578.2,2578.1,1.2445]
[1748631600440,1.9389,2578.3,2577.9,0.00582456]
[1748631600744,0.77564,2578.0,2577.9,0.00582456]
[1748631601539,2.02674,2578.0,2577.9,0.78149456]
[1748631601845,0.77564,2578.0,2577.9,0.78149456]
[1748631602747,0.77564,2578.0,2577.9,0.00582456]
[1748631603946,0.77564,2578.0,2577.9,0.78149456]
[1748631604349,0.77564,2578.0,2577.9,0.00582456]
[1748631604653,0.77579,2577.5,2577.4,3.2078]
[1748631605242,0.77572,2577.8,2577.7,0.77573]
[1748631605443,0.77575,2577.7,2577.6,0.77574]
[1748631605745,0.77576,2577.6,2577.5,1.3364]
[1748631605945,0.77575,2577.7,2577.6,0.77574]
[1748631606649,0.77576,2577.6,2577.5,2.75097]
[1748631607552,3.98334,2578.4,2577.7,1.93933]
[1748631607849,0.77552,2578.4,2578.3,0.77555]
[1748631608342,0.77552,2578.4,2578.3,0.77553]
[1748631608343,0.77553,2578.4,2578.3,0.77553]
[1748631608848,0.77553,2578.4,2578.3,1.3266]
[1748631609050,0.77555,2578.3,2578.2,1.39568]
[1748631609446,2.4851,2578.6,2578.2,1.9467]
[1748631609743,1.38958,2578.6,2578.2,1.9467]
[1748631609952,1.38958,2578.6,2578.4,0.7755]
[1748631610147,1.38958,2578.6,2578.3,1.2966]
[1748631610148,1.38958,2578.6,2578.5,0.77549]
[1748631610447,0.77549,2578.5,2578.4,0.7755]
[1748631611148,0.77552,2578.4,2578.3,2.07213]
[1748631611652,0.77555,2578.3,2578.2,1.39566]
[1748631612649,0.77555,2578.3,2578.2,2.69226]
[1748631613054,0.77555,2578.3,2578.2,0.6201]
[1748631613352,0.77555,2578.3,2578.2,1.39568]
[1748631613644,0.77558,2578.2,2578.1,3.2078]
[1748631613852,0.77558,2578.2,2577.7,3.9835]
[1748631613853,0.7757,2577.8,2577.7,3.9835]
[1748631614954,4.78868,2577.9,2577.8,0.7757]
[1748631615159,4.013,2577.9,2577.8,0.7757]
[1748631615653,4.013,2577.9,2577.8,2.0863]
[1748631616652,4.013,2577.9,2577.8,0.7757]
[1748631617154,4.98237,2577.9,2577.8,2.0531]
[1748631617344,0.1937,2577.9,2577.8,2.0531]
[1748631617546,0.96937,2577.9,2577.8,2.0531]
[1748631617856,0.96937,2577.9,2577.8,1.2774]
[1748631619150,0.96937,2577.9,2577.7,3.2078]
[1748631619151,0.77579,2577.5,2577.4,3.21362456]
[1748631619357,0.77577,2577.6,2577.5,0.77575]
[1748631619557,0.77575,2577.7,2577.6,0.77573]
[1748631620153,0.77576,2577.6,2577.5,1.2872]
[1748631620356,0.77576,2577.6,2577.5,2.06299]
[1748631620761,0.77576,2577.6,2577.5,1.2872]
[1748631621759,0.77576,2577.6,2577.5,2.06299]
[1748631622356,0.77575,2577.7,2577.6,0.77573]
[1748631622558,0.77576,2577.6,2577.5,2.06296]
[1748631622862,0.77576,2577.6,2577.5,1.2872]
[1748631623363,0.77576,2577.6,2577.5,2.06299]
[1748631623958,0.77576,2577.6,2577.5,1.2872]
[1748631624663,0.77579,2577.5,2577.4,3.84132456]
[1748631625365,0.77579,2577.5,2577.4,4.61714456]
[1748631625963,0.77579,2577.5,2577.4,3.98944456]
[1748631626764,0.77579,2577.5,2577.4,3.21362456]
[1748631627567,0.77579,2577.5,2577.4,3.98944456]
[1748631628864,5.3992,2577.9,2577.4,3.98944456]
[1748631628865,1.62638,2577.9,2577.8,0.7757]
[1748631629073,0.96937,2577.9,2577.8,3.9835]
[1748631629765,0.96937,2577.9,2577.8,5.2302]
[1748631629965,0.96937,2577.9,2577.8,4.4545]
[1748631630567,0.96937,2577.9,2577.8,5.2302]
[1748631631468,0.96937,2577.9,2577.8,4.4545]
[1748631632167,0.96937,2577.9,2577.8,3.2078]
[1748631632764,4.98337,2577.9,2577.8,3.2078]
[1748631634573,4.98337,2577.9,2577.5,1.2625]
[1748631634574,0.77579,2577.5,2577.4,3.21362456]
[1748631634867,0.77579,2577.5,2577.4,3.98944456]
[1748631635068,0.77579,2577.5,2577.4,3.21362456]
[1748631635664,0.77579,2577.5,2577.4,4.48532456]
[1748631635864,0.77579,2577.5,2577.4,5.26114456]
[1748631636060,0.77579,2577.5,2577.4,4.48532456]
[1748631636267,0.77579,2577.5,2577.4,5.26114456]
[1748631637470,0.77579,2577.5,2577.4,4.48532456]
[1748631638270,0.77579,2577.5,2577.4,3.21362456]
[1748631638472,2.08239,2577.5,2577.4,3.21362456]
[1748631638673,2.08239,2577.5,2577.4,0.00582456]
[1748631638972,2.27619,2577.5,2577.4,0.00582456]
[1748631640971,0.77597,2576.9,2576.8,3.98378]
[1748631641275,0.77597,2576.9,2576.8,5.23758]
[1748631642674,0.77597,2576.9,2576.8,8.29280862]
[1748631644678,0.78176456,2577.1,2577.0,0.77594]
[1748631645079,0.78176456,2577.1,2577.0,1.41534]
[1748631646480,0.78176456,2577.1,2577.0,0.6394]
[1748631646880,0.78176456,2577.1,2577.0,1.9144]
[1748631648476,0.77597,2576.9,2576.8,6.26302862]
[1748631648681,0.77597,2576.9,2576.8,3.05522862]
[1748631649675,0.776,2576.8,2576.7,1.9628]
[1748631650081,0.776,2576.8,2576.7,2.73883]
[1748631650282,0.77603,2576.7,2576.6,3.06105318]
[1748631650481,0.77603,2576.7,2576.6,3.69725318]
[1748631650883,0.77603,2576.7,2576.6,5.01515318]
[1748631651384,0.77603,2576.7,2576.6,2.73598456]
[1748631656788,0.77603,2576.7,2576.6,1.95992456]
[1748631657086,3.98383,2576.7,2576.6,0.00582456]
[1748631657784,0.77603,2576.7,2576.6,0.00582456]
[1748631659200,0.77603,2576.7,2576.6,1.28752456]
[1748631660399,0.77603,2576.7,2576.6,0.00582456]
[1748631660787,4.73303,2576.7,2576.6,0.00582456]
[1748631661300,0.77603,2576.7,2576.6,0.78188456]
[1748631661600,0.77603,2576.7,2576.6,3.98968456]
[1748631661794,0.77603,2576.7,2576.6,0.00582456]
[1748631662099,0.77603,2576.7,2576.6,1.35962456]
[1748631663194,0.77603,2576.7,2576.6,2.13568456]
[1748631663895,0.77598,2577.0,2576.9,0.77594]
[1748631664397,0.77597,2576.9,2576.8,1.9987]
[1748631664798,0.77597,2576.9,2576.8,2.7747]
[1748631665202,0.77597,2576.9,2576.8,1.9987]
[1748631665399,0.77597,2576.9,2576.8,2.7747]
[1748631665699,0.77597,2576.9,2576.8,1.9987]
[1748631666197,0.77597,2576.9,2576.8,0.6449]
[1748631666390,0.77603,2576.7,2576.6,0.78187456]
[1748631666995,0.77603,2576.7,2576.6,2.04747456]
[1748631667196,0.77603,2576.7,2576.6,1.27142456]
[1748631667603,0.77603,2576.7,2576.6,2.04748456]
[1748631669804,0.96993,2576.7,2576.6,2.04748456]
[1748631670604,0.96993,2576.7,2576.6,5.25528456]
[1748631671103,0.1939,2576.7,2576.6,5.25528456]
[1748631673206,0.00582456,2577.1,2577.0,0.77594]
[1748631673903,0.00582456,2577.1,2577.0,2.03054]
[1748631674211,0.78173456,2577.1,2577.0,2.03054]
[1748631674913,0.00582456,2577.1,2577.0,2.03054]
[1748631675605,13.73852,2579.2,2577.2,1.93966]
[1748631675806,4.4748,2578.7,2578.0,3.2078]
[1748631675999,4.4748,2578.7,2578.1,1.9824]
[1748631676000,0.77558,2578.2,2578.1,1.9824]
[1748631677611,0.77558,2578.2,2578.1,2.75801]
[1748631677809,0.77558,2578.2,2578.1,1.9824]
[1748631678813,0.77558,2578.2,2578.1,2.75801]
[1748631680209,0.77555,2578.3,2578.2,0.77558]
[1748631680610,0.77555,2578.3,2578.1,1.9824]
[1748631680611,1.3431,2578.6,2578.1,1.9824]
[1748631680911,0.7755,2578.5,2578.4,0.77549]
[1748631681106,0.36936178,2579.3,2578.4,7.1628]
[1748631681307,0.36936178,2579.3,2579.2,3.98307]
[1748631682309,0.36936178,2579.3,2579.2,7.93707]
[1748631684707,1.14460178,2579.3,2579.2,3.2078]
[1748631686014,1.14460178,2579.3,2579.2,4.5362]
[1748631687419,1.14460178,2579.3,2579.2,3.2078]
[1748631688414,1.14460178,2579.3,2579.2,3.98307]
[1748631689317,1.14460178,2579.3,2579.2,3.2078]
[1748631689519,1.14460178,2579.3,2579.2,3.98307]
[1748631693831,1.14460178,2579.3,2579.2,3.2078]
[1748631694049,2.46990178,2579.3,2579.2,3.2078]
[1748631694837,2.46990178,2579.3,2579.2,3.98307]
[1748631696843,0.36936178,2579.3,2579.2,3.98307]
[1748631698741,1.14460178,2579.3,2579.2,3.98307]
[1748631699345,0.36936178,2579.3,2579.2,3.98307]
[1748631702140,3.2078,2581.6,2579.2,51.2448]
[1748631702337,3.2078,2582.1,2581.4,3.2078]
[1748631702535,2.6098,2582.1,2581.7,3.2078]
[1748631702742,0.77449,2581.8,2581.7,3.2078]
[1748631703244,3.09127389,2582.2,2581.7,3.2078]
[1748631703445,0.77441,2582.1,2581.8,3.2078]
[1748631703646,2.10611,2582.1,2581.8,3.2078]
[1748631703841,1.3317,2582.1,2581.8,3.2078]
[1748631704049,0.77445,2582.0,2581.8,3.2078]
[1748631704250,0.01920001,2582.5,2581.9,1.13065213]
[1748631704440,0.77443,2582.0,2581.9,4.33845213]
[1748631704746,1.2808,2582.3,2581.9,4.33845213]
[1748631704940,5.4638,2582.3,2581.9,4.33845213]
[1748631705135,1.2808,2582.3,2581.9,4.33845213]
[1748631705336,1.2808,2582.3,2582.2,3.2078]
[1748631705949,7.05514,2582.3,2582.2,3.2078]
[1748631706245,0.77442,2582.1,2581.9,4.33845213]
[1748631706444,1.2808,2582.0,2581.9,4.33845213]
[1748631706646,1.2808,2582.0,2581.9,5.11291213]
[1748631706949,0.77432,2582.4,2581.9,4.33845213]
[1748631707147,1.2808,2582.4,2582.3,3.98214]
[1748631707847,1.2808,2582.4,2582.3,3.2078]
[1748631708049,7.05511,2582.4,2582.3,3.2078]
[1748631708436,6.2808,2582.4,2582.0,3.2078]
[1748631708645,4.95636,2582.3,2582.0,4.33845213]
[1748631708845,2.02519,2582.2,2582.0,1.13065213]
[1748631709041,2.02519,2582.2,2582.1,3.2078]
[1748631709549,6.20619,2582.2,2582.1,3.2078]
[1748631710749,0.77449,2581.9,2581.8,3.2078]
[1748631711846,4.181,2582.2,2581.8,3.2078]
[1748631712150,0.77451,2581.8,2581.6,3.20720213]
[1748631712339,0.77451,2581.8,2581.7,3.2078]
[1748631712539,0.77451,2581.8,2581.7,3.98232]
[1748631712744,0.77449,2581.9,2581.7,3.98232]
[1748631712944,0.77446,2582.0,2581.7,3.2078]
[1748631713149,0.77449,2581.8,2581.7,3.2078]
[1748631715546,0.77449,2581.8,2581.7,3.98232]
[1748631716142,0.77449,2581.8,2581.7,3.2078]
[1748631716346,0.77449,2581.8,2581.7,3.98232]
[1748631716548,0.77449,2581.8,2581.7,3.2078]
[1748631716747,0.77449,2581.8,2581.7,3.98232]
[1748631717449,0.77449,2581.8,2581.7,3.2078]
[1748631718655,0.01920001,2582.5,2581.7,3.2078]
[1748631718958,0.79348001,2582.5,2582.4,3.2078]
[1748631719151,0.77437,2582.2,2582.1,3.2078]
[1748631719555,2.00747,2582.2,2582.1,3.2078]
[1748631720854,0.77437,2582.2,2582.1,3.2078]
[1748631721057,0.77437,2582.2,2582.1,3.9822]
[1748631721554,0.77437,2582.3,2582.2,0.77434]
[1748631721751,0.77437,2582.3,2582.2,1.3117]
[1748631725951,1.93489,2583.7,2582.2,1.3117]
[1748631726149,1.93471,2583.9,2583.3,3.2078]
[1748631726353,0.77397,2583.6,2583.4,1.3397]
[1748631726553,4.179,2583.8,2583.4,1.3397]
[1748631726761,0.77389,2583.8,2583.7,3.2078]
[1748631727256,4.178,2584.4,2583.7,8.2078]
[1748631727461,0.77372,2584.4,2584.3,3.2078]
[1748631729062,0.77372,2584.4,2584.0,1.13065213]
[1748631729063,0.7738,2584.1,2584.0,1.13065213]
[1748631729269,4.9518,2584.1,2584.0,0.24031213]
[1748631729562,4.9518,2584.1,2583.3,0.00581316]
[1748631729563,0.77401,2583.4,2583.3,3.21361316]
[1748631729863,0.77401,2583.4,2583.3,0.00581316]
[1748631730060,5.77401,2583.4,2583.3,0.00581316]
[1748631730261,9.95201,2583.4,2583.3,0.00581316]
[1748631730771,0.77419,2582.8,2582.7,3.2078]
[1748631731861,0.77425,2582.6,2582.5,0.00581316]
[1748631732067,1.27117517,2583.0,2582.5,5.31017316]
[1748631732273,0.77425,2582.6,2582.5,4.53591316]
[1748631732873,0.00577517,2583.0,2582.5,4.53591316]
[1748631733072,4.34877517,2583.0,2582.5,4.53591316]
[1748631733274,0.77425,2582.6,2582.5,5.31018316]
[1748631733570,0.77425,2582.6,2582.5,4.53591316]
[1748631733769,0.77425,2582.6,2582.5,3.21361316]
[1748631736274,0.77425,2582.6,2582.5,0.00581316]
[1748631736473,1.99885,2582.6,2582.5,0.00581316]
[1748631736673,1.99885,2582.6,2582.5,3.16e-06]
[1748631737376,5.14898517,2583.0,2582.5,3.16e-06]
[1748631737377,4.343,2584.3,2583.1,0.7741]
[1748631737685,4.343,2584.3,2583.2,1.2681]
[1748631737686,0.77404,2583.3,2583.2,1.2681]
[1748631737981,0.77404,2583.3,2583.2,4.4759]
[1748631739185,0.77404,2583.3,2583.2,5.24997]
[1748631739889,0.77404,2583.4,2583.3,0.77404]
[1748631740180,0.77404,2583.4,2583.3,2.04214]
[1748631740385,0.7798,2583.5,2583.4,0.77401]
[1748631740584,0.7798,2583.5,2583.3,1.2681]
[1748631740585,0.00581,2583.5,2583.3,1.2681]
[1748631740784,0.77401,2583.4,2583.3,2.04213]
[1748631741386,0.00581,2583.5,2583.4,0.77401]
[1748631741879,0.00581,2583.5,2583.4,2.01981]
[1748631742379,0.77979,2583.5,2583.4,1.2458]
[1748631742583,0.00581,2583.5,2583.4,2.01981]
[1748631744088,0.00581,2583.5,2583.4,4.28302053]
[1748631744382,0.77979,2583.5,2583.4,3.50901053]
[1748631744586,0.77979,2583.5,2583.4,4.28302053]
[1748631744784,0.00581,2583.5,2583.4,4.28302053]
[1748631745788,0.00581,2583.5,2583.4,2.01981]
[1748631746088,0.77387,2583.9,2583.8,0.77389]
[1748631746387,4.342,2584.3,2583.8,3.2078]
[1748631746590,5.11574,2584.3,2584.2,3.2078]
[1748631746982,0.77374,2584.3,2584.2,3.2078]
[1748631748181,0.35704973,2584.6,2584.5,0.77369]
[1748631748384,0.35704973,2584.6,2584.5,3.98149]
[1748631748584,1.13070973,2584.6,2584.5,3.2078]
[1748631749189,1.13070973,2584.6,2584.5,4.4891]
[1748631749490,1.13070973,2584.6,2584.5,5.26279]
[1748631749684,1.13070973,2584.6,2584.5,4.4891]
[1748631750076,0.77375,2584.3,2584.2,5.47101053]
[1748631750783,0.77369,2584.5,2584.4,0.77371]
[1748631750977,4.69904973,2584.6,2584.3,1.2219]
[1748631751175,0.77372,2584.4,2584.3,1.99563]
[1748631751391,0.77372,2584.4,2584.3,5.20343]
[1748631751688,0.77372,2584.4,2584.3,4.4297]
[1748631754588,0.35704973,2584.6,2584.3,4.4297]
[1748631754788,0.7737,2584.5,2584.4,0.77369]
[1748631754989,0.35704973,2584.6,2584.5,0.77369]
[1748631755487,0.77355,2585.0,2584.9,0.77357]
[1748631755690,0.77355,2585.0,2584.9,3.98137]
[1748631756191,1.93349,2585.5,2584.9,3.2078]
[1748631756492,0.77353,2585.1,2585.0,2.04652]
[1748631756683,0.77353,2585.1,2585.0,5.25432]
[1748631756887,0.6699,2585.9,2585.0,4.4808]
[1748631757087,0.6699,2585.9,2585.7,3.2078]
[1748631757088,0.7733,2585.8,2585.7,3.2078]
[1748631757292,6.4177,2585.8,2585.7,3.2078]
[1748631757489,11.4177,2585.8,2585.7,3.2078]
[1748631757688,7.0777,2585.8,2585.7,3.2078]
[1748631757888,11.4177,2585.8,2585.7,3.2078]
[1748631758289,0.77336,2585.6,2585.5,0.00580181]
[1748631758890,5.11336,2585.6,2585.5,0.00580181]
[1748631759089,10.11336,2585.6,2585.5,1.81e-06]
[1748631759890,0.77336,2585.6,2585.5,1.81e-06]
[1748631760089,10.11336,2585.6,2585.5,1.81e-06]
[1748631760693,10.13578323,2585.6,2585.5,1.81e-06]
[1748631762385,1.93347,2585.5,2585.0,3.2078]
[1748631762589,0.77354,2585.0,2584.9,1.3478]
[1748631763290,1.95582323,2585.6,2584.9,6.3478]
[1748631763484,0.77339,2585.5,2585.4,3.2078]
[1748631764091,0.77348,2585.2,2585.1,1.9211]
[1748631765097,5.26348,2585.2,2585.1,1.2922]
[1748631767596,0.77351,2585.1,2585.0,3.21360181]
[1748631768993,0.77351,2585.1,2585.0,4.48180181]
[1748631769999,0.77351,2585.1,2585.0,5.98494862]
[1748631770195,1.95584323,2585.6,2585.0,10.98494862]
[1748631770393,0.77339,2585.5,2585.4,3.2078]
[1748631770698,0.77339,2585.5,2585.4,5.87462]
[1748631771091,0.77339,2585.5,2585.4,5.1012]
[1748631771291,0.77339,2585.5,2585.4,5.757]
[1748631771494,0.79578323,2585.6,2585.5,0.77339]
[1748631771799,0.79578323,2585.6,2585.5,1.2369]
[1748631771991,0.79578323,2585.6,2585.5,2.01029]
[1748631772296,0.02242323,2585.6,2585.5,2.01029]
[1748631772697,0.79578323,2585.6,2585.5,1.2369]
[1748631773294,0.77342,2585.4,2585.3,2.26321053]
[1748631773492,5.26242,2585.4,2585.3,2.26321053]
[1748631773903,0.77345,2585.3,2585.2,1.50806014]
[1748631775997,0.77348,2585.2,2585.1,1.2369]
[1748631779703,0.77351,2585.1,2585.0,3.21360181]
[1748631779904,0.77351,2585.1,2585.0,0.00580181]
[1748631781400,0.77357,2584.9,2584.8,2.26321053]
[1748631781606,5.26257,2584.9,2584.8,2.26321053]
[1748631781997,6.57427,2584.9,2584.8,2.26321053]
[1748631782201,5.26257,2584.9,2584.8,2.26321053]
[1748631782597,0.77357,2584.9,2584.8,1.51383049]
[1748631782797,0.77357,2584.9,2584.8,2.28743049]
[1748631783114,0.77357,2584.9,2584.8,4.20293049]
[1748631783509,0.77355,2585.0,2584.9,0.77355]
[1748631783709,0.77355,2585.0,2584.9,2.65685]
[1748631784511,0.77355,2585.0,2584.9,1.8833]
[1748631786004,0.77355,2585.0,2584.9,1.227]
[1748631786611,0.77355,2585.0,2584.9,3.49906925]
[1748631787914,0.77355,2585.0,2584.9,2.27206925]
[1748631788111,0.77355,2585.0,2584.6,0.00580181]
[1748631788112,0.77363,2584.7,2584.6,0.00580181]
[1748631788305,8.47043,2584.7,2584.6,0.00580181]
[1748631788706,13.47043,2584.7,2584.6,1.81e-06]
[1748631789814,3.86866,2584.4,2583.7,0.6355]
[1748631790017,0.7739,2583.8,2583.7,0.6355]
[1748631793211,0.77396,2583.6,2583.5,0.00580181]
[1748631799314,0.77396,2583.6,2583.5,1.81e-06]
[1748631799521,3.98176,2583.6,2583.5,1.81e-06]